bitfinex/quotes_ETHUSD_20260208
["timestamp","ask_amount","ask_price","bid_price","bid_amount"]
[1770570351424,0.96592879,2094.3,2092.5,0.001]
[1770570351425,1.01093329,2093.9,2092.5,0.001]
[1770570351612,0.96592879,2093.9,2092.5,0.001]
[1770570351813,5.42209479,2093.8,2092.5,0.001]
[1770570352037,5.37709029,2093.8,2092.5,0.91269466]
[1770570352726,1.19405836,2093.7,2092.6,1.19468603]
[1770570353104,5.37709029,2093.6,2092.6,1.19468603]
[1770570354705,1.19417243,2093.5,2092.5,4.53469961]
[1770570355123,1.19417243,2093.5,2092.6,1.19467437]
[1770570355335,5.37709029,2093.4,2092.5,0.001]
[1770570355530,5.37709029,2093.4,2092.6,1.19467803]
[1770570355708,5.37709029,2093.4,2092.5,1.19571563]
[1770570355912,5.37709029,2093.4,2092.6,1.19468259]
[1770570356815,1.19428653,2093.3,2092.5,0.001]
[1770570357017,5.37709029,2093.4,2092.5,0.91269466]
[1770570358135,5.37709029,2093.4,2092.8,0.001]
[1770570360704,6.57135133,2093.4,2092.8,0.001]
[1770570361807,6.57135133,2093.4,2091.1,0.91169466]
[1770570361808,0.96592879,2093.3,2091.1,0.91169466]
[1770570362010,0.96592879,2093.3,2090.7,0.001]
[1770570362011,1.01093329,2092.3,2091.0,4.78221578]
[1770570362259,3.3840045,2092.2,2091.2,1.19545816]
[1770570362561,0.96592879,2092.1,2090.9,1.19665274]
[1770570362711,0.96592879,2092.1,2090.9,0.001]
[1770570363031,0.0450045,2091.9,2090.9,0.001]
[1770570363206,6.34301908,2092.0,2090.9,0.001]
[1770570363408,5.37709029,2092.0,2091.1,1.19550837]
[1770570363625,3.339,2091.9,2091.0,1.19556555]
[1770570363813,1.19514293,2091.8,2090.9,0.001]
[1770570364338,5.37709029,2091.7,2090.9,0.001]
[1770570366433,6.57230368,2091.7,2090.9,0.001]
[1770570367026,7.53823247,2091.7,2090.9,0.001]
[1770570367609,7.58323697,2091.7,2090.9,0.001]
[1770570368632,0.96592879,2091.6,2090.9,0.001]
[1770570369036,6.34301908,2091.5,2090.9,0.001]
[1770570369549,5.37709029,2091.5,2090.9,0.001]
[1770570370129,0.96592879,2091.3,2090.1,1.19709593]
[1770570370323,3.34,2091.2,2090.1,1.19709593]
[1770570370525,6.57246181,2091.4,2090.2,0.91169466]
[1770570370721,3.34,2091.3,2091.1,0.001]
[1770570370923,3.34,2091.3,2090.2,0.91169466]
[1770570371137,3.34,2091.3,2090.9,0.001]
[1770570371348,5.37709029,2091.2,2090.9,0.001]
[1770570372655,1.19554301,2091.1,2090.9,0.001]
[1770570373131,5.37709029,2091.0,2090.3,1.19600057]
[1770570373637,5.37709029,2091.0,2090.2,1.19603633]
[1770570374543,0.0450045,2090.9,2090.1,0.001]
[1770570374759,3.341,2090.9,2090.1,0.001]
[1770570375672,5.37709029,2090.8,2090.1,0.001]
[1770570375879,0.1024,2091.7,2090.1,0.96259647]
[1770570376187,3.341,2091.3,2090.1,0.96259647]
[1770570376556,6.57257613,2091.2,2090.2,1.19605779]
[1770570376745,6.57257613,2091.2,2090.2,2.15765426]
[1770570378680,6.57257613,2091.2,2090.3,0.96159647]
[1770570379948,7.55289793,2091.2,2090.2,1.19604441]
[1770570380771,7.55289793,2091.2,2090.1,0.001]
[1770570380772,6.57257613,2091.2,2090.1,0.001]
[1770570383062,7.55289793,2091.2,2090.1,0.001]
[1770570383682,7.55289793,2091.2,2090.5,0.001]
[1770570384550,7.59790243,2091.2,2090.5,0.001]
[1770570384754,0.9803218,2091.1,2090.5,0.001]
[1770570384958,8.12215605,2092.0,2090.6,0.96159647]
[1770570385173,5.37709029,2091.9,2090.6,0.96159647]
[1770570385382,5.37709029,2091.9,2090.8,0.96159647]
[1770570385654,0.002,2092.3,2091.2,0.96159647]
[1770570385868,5.37709029,2092.1,2091.3,0.96159647]
[1770570387178,5.37709029,2092.1,2091.5,0.96159647]
[1770570387558,0.002,2092.3,2091.5,0.96159647]
[1770570387759,5.37709029,2092.2,2091.6,0.96159647]
[1770570387956,5.37709029,2092.2,2091.8,0.96159647]
[1770570388170,0.002,2092.3,2091.8,0.96159647]
[1770570388373,5.37709029,2092.2,2091.8,0.96159647]
[1770570389459,5.37709029,2092.2,2091.9,2.15668227]
[1770570389656,0.002,2092.3,2091.9,2.15668227]
[1770570389861,0.002,2092.5,2092.0,0.96159647]
[1770570390072,5.37909029,2092.5,2092.0,0.96159647]
[1770570390658,0.002,2092.5,2092.0,0.96159647]
[1770570390988,2.41,2093.3,2092.1,0.96159647]
[1770570391155,5.37709029,2093.3,2092.1,0.96159647]
[1770570391357,5.37709029,2093.3,2092.3,0.96159647]
[1770570392099,5.37709029,2093.2,2092.3,0.96159647]
[1770570393386,1.19360229,2094.5,2092.7,0.96159647]
[1770570393573,3.3860045,2094.6,2092.9,0.96159647]
[1770570393779,3.341,2094.6,2092.9,0.96159647]
[1770570393965,0.0450045,2094.2,2092.9,0.96159647]
[1770570394169,0.71906054,2094.5,2092.9,0.96159647]
[1770570394468,0.0450045,2094.2,2092.9,0.96159647]
[1770570394789,0.57165604,2094.4,2092.9,0.96159647]
[1770570395474,1.19371627,2094.3,2093.1,0.96159647]
[1770570396064,1.19571627,2094.3,2093.1,0.96159647]
[1770570396483,3.34,2094.2,2093.1,0.96159647]
[1770570397093,0.002,2094.3,2093.1,0.96159647]
[1770570397284,3.34,2094.2,2093.1,0.96159647]
[1770570397593,3.34,2094.2,2093.3,0.96159647]
[1770570397897,4.53378139,2094.2,2093.3,0.96159647]
[1770570398272,1.195732,2094.3,2093.3,0.96159647]
[1770570398467,3.34,2094.2,2093.3,0.96159647]
[1770570399366,0.002,2094.3,2093.3,0.96159647]
[1770570399569,0.002,2094.3,2093.5,0.96159647]
[1770570402498,0.002,2094.3,2093.6,1.19411539]
[1770570403084,0.002,2094.3,2093.5,1.19413178]
[1770570403804,0.002,2094.3,2093.4,1.1941879]
[1770570404104,0.002,2094.3,2093.5,1.19416733]
[1770570404288,0.002,2094.3,2093.5,2.1557638]
[1770570405298,0.002,2094.3,2093.4,1.19418735]
[1770570405500,0.002,2094.3,2093.2,5.72901694]
[1770570405701,0.002,2094.3,2093.4,1.19419007]
[1770570406488,0.002,2094.3,2093.4,0.95173882]
[1770570407595,0.002,2094.5,2093.7,0.95173882]
[1770570408802,0.002,2094.5,2093.8,1.19400133]
[1770570408983,0.002,2094.5,2093.9,0.95173882]
[1770570409924,0.002,2094.1,2093.9,0.95173882]
[1770570411326,0.002,2094.1,2094.0,2.14562611]
[1770570411506,0.002,2094.1,2093.7,0.95173882]
[1770570411721,0.002,2094.1,2093.9,1.19394125]
[1770570412288,0.002,2094.5,2094.0,0.95173882]
[1770570412980,0.002,2094.5,2093.9,1.19394125]
[1770570413320,0.002,2094.5,2093.9,2.14568007]
[1770570413492,0.002,2094.5,2093.6,0.95173882]
[1770570413696,0.002,2094.5,2093.4,0.001]
[1770570413886,0.002,2094.5,2093.5,4.77666228]
[1770570414085,0.002,2094.5,2093.7,1.19405615]
[1770570414428,0.002,2094.5,2093.4,0.001]
[1770570414609,0.002,2094.5,2093.9,1.19394296]
[1770570414807,0.002,2094.5,2093.8,2.14571759]
[1770570415105,0.002,2094.5,2093.7,1.19402378]
[1770570415294,0.002,2094.5,2093.6,2.1458212]
[1770570415499,0.002,2094.5,2093.7,1.19405808]
[1770570415923,0.002,2094.5,2093.6,0.95173882]
[1770570416213,0.002,2094.5,2093.6,2.1458428]
[1770570416601,0.002,2094.5,2093.5,1.19412881]
[1770570417010,0.002,2094.5,2093.6,1.19411415]
[1770570417312,0.57565604,2094.5,2093.4,0.001]
[1770570417511,1.19365928,2094.4,2093.4,0.001]
[1770570417722,1.19365928,2094.4,2093.4,0.95273882]
[1770570418007,1.19365928,2094.4,2093.4,0.001]
[1770570418208,3.337,2094.3,2093.4,0.001]
[1770570419686,1.19377327,2094.2,2093.4,0.001]
[1770570420091,0.61866054,2094.0,2093.1,0.001]
[1770570420598,3.337,2094.3,2093.4,0.95173882]
[1770570420800,4.53071636,2094.3,2093.4,0.95173882]
[1770570421198,3.337,2094.3,2093.4,0.95173882]
[1770570421405,4.53072155,2094.3,2093.4,0.95173882]
[1770570421728,4.53072155,2094.3,2093.4,2.14595]
[1770570422619,4.53072155,2094.3,2093.2,1.19430543]
[1770570422935,4.53072155,2094.3,2093.2,2.14604425]
[1770570423117,4.53072155,2094.3,2093.4,0.001]
[1770570423317,4.53272155,2094.3,2093.4,0.001]
[1770570424102,5.10637759,2094.3,2093.4,0.001]
[1770570424506,0.0450045,2094.1,2093.1,0.001]
[1770570425531,0.61866054,2094.1,2093.1,0.001]
[1770570425825,4.53272155,2094.3,2093.1,0.001]
[1770570426019,0.61866054,2094.0,2093.1,0.001]
[1770570426598,4.53272155,2094.3,2093.1,0.001]
[1770570426599,0.72106054,2094.2,2093.1,0.001]
[1770570427613,0.0450045,2093.8,2093.1,0.001]
[1770570427930,1.19383028,2094.1,2093.1,0.95273882]
[1770570428138,1.19383028,2094.1,2093.1,0.001]
[1770570428650,1.19383028,2094.1,2093.1,0.95273882]
[1770570430327,4.77532114,2094.2,2093.2,0.95173882]
[1770570432331,4.77532114,2094.2,2093.3,0.95173882]
[1770570432840,4.82032564,2094.2,2093.3,0.95173882]
[1770570433052,4.82032564,2094.2,2093.1,0.001]
[1770570433053,0.0450045,2093.9,2093.1,0.001]
[1770570433339,0.72106054,2093.9,2092.7,0.95173882]
[1770570433504,0.57365604,2093.8,2092.3,0.95273882]
[1770570433709,0.0450045,2093.5,2092.3,2.14758821]
[1770570433934,0.0450045,2093.5,2092.4,1.194793]
[1770570434232,0.0450045,2093.5,2092.3,0.95273882]
[1770570434233,1.19422948,2093.4,2092.3,0.95273882]
[1770570434427,1.19422948,2093.4,2092.3,2.14758969]
[1770570434632,1.19422948,2093.4,2092.4,0.95173882]
[1770570435631,0.61866054,2093.2,2092.3,0.001]
[1770570435834,3.3830045,2093.1,2091.7,0.94749021]
[1770570436040,3.3830045,2093.1,2091.8,2.14259962]
[1770570436245,3.3830045,2093.1,2091.8,0.94749021]
[1770570436246,0.0450045,2092.8,2091.8,0.94749021]
[1770570436415,0.61866054,2092.8,2091.5,0.94749021]
[1770570436614,0.1024,2092.7,2091.5,2.1427742]
[1770570436825,0.1024,2092.7,2091.5,0.94749021]
[1770570437036,0.0450045,2091.9,2090.3,0.001]
[1770570437210,0.0450045,2092.2,2091.1,0.94749021]
[1770570437211,0.667,2091.8,2091.1,0.94749021]
[1770570437612,0.667,2091.8,2090.9,1.19562727]
[1770570438115,0.667,2091.8,2090.9,1.19565409]
[1770570438320,1.19520007,2091.7,2090.9,2.14311512]
[1770570438524,1.19520007,2091.7,2090.9,0.94749021]
[1770570439918,1.86214665,2091.8,2090.9,0.94749021]
[1770570440317,0.667,2091.8,2091.1,0.94749021]
[1770570440947,4.77775786,2093.1,2091.1,0.94749021]
[1770570441111,4.77897252,2092.6,2091.1,0.94749021]
[1770570441325,4.82397702,2092.6,2091.1,0.94749021]
[1770570441940,4.77897252,2092.6,2091.1,0.94749021]
[1770570442543,4.77897252,2092.6,2091.3,0.94749021]
[1770570443623,0.0450045,2092.5,2091.3,0.94749021]
[1770570444029,4.77897252,2092.6,2091.3,0.94749021]
[1770570444351,0.0450045,2092.5,2091.3,0.94749021]
[1770570444824,0.0450045,2092.5,2091.4,2.14286173]
[1770570445024,4.77897252,2092.6,2091.5,0.94749021]
[1770570446524,0.0450045,2092.5,2091.5,0.94749021]
[1770570446852,1.23997605,2092.1,2091.0,1.19559821]
[1770570447047,3.34,2092.0,2090.9,2.14310362]
[1770570447230,3.34,2092.0,2091.0,1.19560007]
[1770570447428,3.34,2092.0,2091.1,1.19551693]
[1770570447860,3.34,2092.0,2091.0,2.14305828]
[1770570448351,3.34,2092.0,2091.2,1.19547742]
[1770570448656,3.34,2092.0,2091.3,0.94749021]
[1770570448831,1.1950858,2091.9,2091.3,2.1429126]
[1770570449156,0.002,2091.9,2091.3,0.94749021]
[1770570449652,0.002,2091.9,2091.3,2.14291749]
[1770570449858,0.002,2091.9,2091.3,0.94749021]
[1770570450055,0.002,2091.9,2091.2,2.14296889]
[1770570450267,0.002,2091.9,2091.1,1.19648952]
[1770570450442,0.002,2091.9,2091.1,1.19651794]
[1770570452931,0.002,2091.9,2091.2,0.94749021]
[1770570455065,3.34,2091.8,2091.3,2.14291889]
[1770570455362,4.53515887,2091.8,2091.1,0.001]
[1770570456235,4.58016337,2091.8,2091.1,0.001]
[1770570457034,5.21281941,2091.8,2091.1,0.001]
[1770570457236,0.0450045,2091.5,2091.1,0.001]
[1770570457432,5.21281941,2091.8,2091.1,0.001]
[1770570457639,0.0450045,2091.5,2090.5,1.19687985]
[1770570457858,5.21281941,2091.8,2090.5,1.19687985]
[1770570458051,0.0450045,2091.5,2090.5,1.19687985]
[1770570458638,0.0450045,2091.5,2090.5,2.14436199]
[1770570458847,5.21281941,2091.8,2090.5,0.94849021]
[1770570459059,0.0450045,2091.5,2090.5,2.14436581]
[1770570459662,4.78087191,2091.7,2090.7,0.94749021]
[1770570460037,4.78087191,2091.7,2090.5,1.19684608]
[1770570460239,5.41352795,2091.7,2090.5,2.14433629]
[1770570460466,0.0450045,2091.5,2090.5,2.14433629]
[1770570460662,5.41352795,2091.7,2090.5,2.14433629]
[1770570461182,0.0450045,2091.5,2090.5,2.14433629]
[1770570461470,0.0450045,2091.5,2090.5,0.94849021]
[1770570461846,1.19537152,2091.4,2090.5,0.94849021]
[1770570462441,1.19537152,2091.4,2090.7,0.001]
[1770570462754,1.19537152,2091.4,2090.7,0.94849021]
[1770570463358,1.19528997,2091.6,2090.7,0.94849021]
[1770570463572,1.1972317,2091.7,2090.7,0.94849021]
[1770570463759,1.1972317,2091.7,2090.9,0.94749021]
[1770570464564,0.002,2091.7,2090.9,0.94749021]
[1770570465980,0.002,2091.7,2091.0,2.19529956]
[1770570467659,3.34,2091.8,2091.2,0.99969937]
[1770570468162,0.002,2091.9,2091.4,0.99969937]
[1770570470169,0.002,2091.9,2091.6,0.99969937]
[1770570471373,1.19462894,2092.7,2091.6,0.99969937]
[1770570471546,0.002,2092.7,2091.6,0.99969937]
[1770570471743,0.0470045,2092.7,2091.6,0.99969937]
[1770570472051,0.0470045,2092.7,2090.7,4.78389204]
[1770570472052,1.19485733,2092.3,2091.3,0.99969937]
[1770570472250,3.341,2092.2,2091.3,2.19509107]
[1770570472452,3.343,2092.2,2091.4,0.99969937]
[1770570473467,3.343,2092.2,2091.1,0.99969937]
[1770570473656,3.343,2092.2,2091.3,1.19542618]
[1770570473965,3.343,2092.2,2091.4,0.99969937]
[1770570474166,3.343,2092.2,2091.6,0.99969937]
[1770570474758,3.341,2092.2,2091.6,0.99969937]
[1770570475241,3.343,2092.2,2091.6,0.99969937]
[1770570476061,0.002,2092.0,2091.6,0.99969937]
[1770570476256,0.002,2092.0,2091.6,2.19492825]
[1770570476462,0.004,2092.0,2091.6,2.1949533]
[1770570478382,0.004,2092.0,2091.6,0.99969937]
[1770570478691,0.004,2092.0,2091.5,1.19530926]
[1770570478895,0.004,2092.0,2091.4,1.19533059]
[1770570479253,0.004,2092.0,2091.5,1.19530741]
[1770570480055,3.345,2092.0,2091.3,1.00069937]
[1770570480352,3.345,2092.0,2091.4,1.19535829]
[1770570480557,3.345,2092.0,2091.5,0.99969937]
[1770570482073,0.002,2091.9,2091.5,0.99969937]
[1770570482269,0.002,2091.9,2091.5,2.19496422]
[1770570483674,0.002,2091.9,2091.3,0.001]
[1770570483881,0.002,2091.9,2091.4,1.19535882]
[1770570484058,0.002,2091.9,2091.3,1.00069937]
[1770570484260,0.002,2091.9,2091.3,2.19609671]
[1770570484490,0.002,2091.9,2091.4,1.19535129]
[1770570485562,0.002,2091.9,2091.5,0.99969937]
[1770570485965,3.343,2092.0,2091.5,0.99969937]
[1770570486270,6.352,2092.8,2091.5,0.99969937]
[1770570486271,0.002,2092.8,2091.8,0.99969937]
[1770570486458,0.002,2092.7,2091.9,4.34069937]
[1770570486666,0.002,2092.7,2092.1,0.99969937]
[1770570488795,0.002,2092.7,2092.3,0.99969937]
[1770570490174,0.002,2092.8,2092.3,0.99969937]
[1770570490405,0.002,2092.7,2092.3,0.99969937]
[1770570490700,0.002,2092.8,2092.5,0.99969937]
[1770570491067,0.002,2092.7,2092.2,1.19487668]
[1770570491396,0.002,2092.7,2092.1,0.99969937]
[1770570491598,0.002,2092.7,2092.1,2.19463165]
[1770570491770,0.002,2092.7,2092.2,1.194913]
[1770570492884,0.002,2092.7,2092.1,0.99969937]
[1770570493081,0.002,2092.7,2091.7,1.19520007]
[1770570493280,0.002,2092.7,2091.8,0.99969937]
[1770570495103,0.002,2092.7,2092.0,0.91913352]
[1770570497005,0.002,2092.7,2091.9,1.1950858]
[1770570497205,0.002,2092.7,2091.8,4.78034322]
[1770570497676,0.002,2092.7,2091.8,1.19514293]
[1770570498079,0.002,2092.7,2091.8,2.11427645]
[1770570498273,0.002,2092.7,2091.8,0.91913352]
[1770570499388,0.002,2092.7,2092.0,0.91913352]
[1770570501103,0.002,2092.7,2091.9,1.1950858]
[1770570501287,0.002,2092.5,2091.9,1.1950858]
[1770570501602,0.002,2092.5,2091.8,5.6994904]
[1770570501774,0.002,2092.4,2091.9,0.91913352]
[1770570502199,0.002,2092.4,2091.8,1.19514293]
[1770570502799,0.002,2092.4,2091.8,2.11427645]
[1770570503105,0.002,2092.4,2091.8,0.91913352]
[1770570503888,0.002,2092.4,2092.0,0.91913352]
[1770570507095,0.002,2092.4,2092.1,2.11410507]
[1770570508409,0.002,2092.4,2091.9,1.19505704]
[1770570510110,0.002,2092.5,2091.5,0.001]
[1770570510288,0.002,2092.3,2091.5,1.19631184]
[1770570510605,0.002,2092.3,2091.5,0.001]
[1770570511910,0.002,2092.5,2091.6,1.19525186]
[1770570512110,0.002,2092.4,2091.5,0.92013352]
[1770570512515,0.002,2092.4,2091.5,0.001]
[1770570513983,0.002,2092.4,2091.7,0.001]
[1770570514515,0.002,2092.4,2091.7,0.92013352]
[1770570515307,0.002,2092.4,2091.7,0.001]
[1770570515481,0.002,2092.4,2091.7,0.92013352]
[1770570516524,0.002,2092.4,2091.9,0.91913352]
[1770570518718,0.002,2092.4,2092.0,1.19502868]
[1770570518931,0.002,2092.4,2091.7,0.001]
[1770570519097,0.002,2092.4,2091.8,1.19513785]
[1770570520204,0.002,2092.5,2091.8,1.19513785]
[1770570520437,0.002,2092.4,2091.9,2.11421557]
[1770570521226,0.002,2092.5,2091.9,2.11421557]
[1770570521398,0.002,2092.3,2091.9,2.11421557]
[1770570521801,0.002,2092.3,2092.0,0.91913352]
[1770570522631,0.002,2092.3,2092.1,1.19497155]
[1770570523028,0.002,2092.3,2092.2,0.91913352]
[1770570523227,0.002,2092.3,2091.9,0.91913352]
[1770570523399,0.002,2092.3,2091.9,2.11421473]
[1770570523599,0.002,2092.3,2092.0,1.19502733]
[1770570523811,0.002,2092.3,2092.0,2.11416085]
[1770570524012,0.002,2092.3,2092.1,0.91913352]
[1770570525026,0.002,2092.5,2092.3,0.97183468]
[1770570525531,0.002,2092.5,2091.9,5.75205081]
[1770570525832,0.002,2092.5,2092.1,1.19497043]
[1770570526505,0.002,2092.2,2092.1,1.19497043]
[1770570527429,0.002,2092.2,2092.1,0.97183468]
[1770570529429,0.002,2092.2,2092.1,2.16680623]
[1770570529608,0.002,2092.2,2092.1,5.50680623]
[1770570533027,0.002,2092.5,2092.2,0.97183468]
[1770570534626,0.002,2092.5,2092.3,2.16669201]
[1770570536427,0.002,2092.5,2092.3,1.19485733]
[1770570536829,0.002,2092.5,2092.3,0.97183468]
[1770570539804,0.002,2092.5,2092.4,1.19480022]
[1770570541520,0.002,2092.5,2092.3,5.75221268]
[1770570541521,0.002,2092.5,2092.2,1.19487646]
[1770570541914,0.002,2092.5,2092.0,0.001]
[1770570542117,0.002,2092.5,2092.1,1.19496895]
[1770570542438,0.002,2092.5,2092.1,1.19495637]
[1770570543718,0.002,2092.5,2091.9,4.78324144]
[1770570544729,0.002,2092.5,2091.9,5.75507612]
[1770570545425,0.002,2092.5,2091.9,4.78324144]
[1770570546740,0.002,2092.5,2091.9,0.003]
[1770570548523,0.002,2092.5,2091.8,1.1950858]
[1770570548737,0.002,2092.5,2091.8,1.1980858]
[1770570549043,0.002,2092.5,2091.8,0.003]
[1770570549360,0.002,2092.5,2091.8,0.97483468]
[1770570549531,0.002,2092.5,2091.8,0.003]
[1770570550342,0.002,2092.5,2091.7,0.97283468]
[1770570550638,0.002,2092.5,2091.9,1.01683918]
[1770570550838,0.002,2092.5,2092.1,0.97183468]
[1770570551019,0.002,2092.5,2092.2,1.19491444]
[1770570553232,1.19422948,2093.5,2092.3,1.01683918]
[1770570553431,1.19422948,2093.5,2092.5,0.97183468]
[1770570553837,0.002,2093.4,2092.5,0.97183468]
[1770570555043,1.19428653,2093.3,2092.6,1.19468603]
[1770570555248,1.79627125,2093.4,2092.6,1.19468603]
[1770570555542,1.79627125,2093.4,2092.7,0.003]
[1770570556359,1.79623089,2093.4,2092.7,0.003]
[1770570557125,1.79623089,2093.4,2092.4,3.339]
[1770570557126,0.64065604,2093.3,2092.4,3.339]
[1770570557323,0.64065604,2093.3,2092.6,0.003]
[1770570557926,0.64065604,2093.3,2092.4,3.339]
[1770570558128,0.64065604,2093.3,2092.5,1.19771303]
[1770570558326,0.64065604,2093.3,2092.4,1.19477336]
[1770570558727,0.64065604,2093.3,2092.5,1.19774257]
[1770570558928,1.79623089,2093.4,2092.6,1.19466877]
[1770570559452,1.79623089,2093.4,2092.7,0.003]
[1770570560130,0.602,2093.4,2092.7,0.96621827]
[1770570560551,1.7962299,2093.4,2092.7,0.96621827]
[1770570560731,0.602,2093.4,2092.7,0.96621827]
[1770570561631,0.602,2093.4,2092.8,2.15779013]
[1770570561951,0.602,2093.4,2092.8,1.19457186]
[1770570562158,2.43689981,2093.4,2092.5,3.339]
[1770570562360,2.43689981,2093.4,2092.7,0.003]
[1770570562560,2.43689981,2093.4,2092.5,1.19774228]
[1770570562761,2.43689981,2093.4,2092.5,0.003]
[1770570563126,2.43689981,2093.4,2092.5,1.19774015]
[1770570563527,1.79624377,2093.4,2092.6,1.19468295]
[1770570563737,1.79624377,2093.4,2092.6,0.96321827]
[1770570563936,0.602,2093.4,2092.7,0.96621827]
[1770570564956,0.602,2093.4,2092.8,0.96321827]
[1770570565257,0.002,2093.4,2092.8,0.96321827]
[1770570565439,0.002,2093.4,2092.9,0.96621827]
[1770570565637,0.002,2093.2,2093.0,1.19445771]
[1770570566052,0.002,2093.4,2093.1,0.001]
[1770570571935,0.002,2093.4,2093.0,0.96321827]
[1770570572141,4.53281806,2094.2,2093.1,0.96321827]
[1770570572858,4.53281806,2094.2,2093.3,0.96321827]
[1770570573366,4.53281806,2094.2,2093.4,0.001]
[1770570573739,4.53281806,2094.2,2093.4,0.96421827]
[1770570573941,1.19374418,2094.3,2093.4,0.96421827]
[1770570574957,1.83640022,2094.3,2093.4,0.001]
[1770570575177,0.64265604,2094.2,2093.4,0.001]
[1770570575847,1.19374418,2094.3,2093.4,0.001]
[1770570576050,0.64265604,2094.2,2093.0,0.96321827]
[1770570576263,0.68766054,2094.2,2093.1,2.15757894]
[1770570576766,0.68766054,2094.2,2093.1,0.96321827]
[1770570576947,1.19383028,2094.1,2093.2,1.19434037]
[1770570577142,1.19383028,2094.1,2093.1,0.96321827]
[1770570577341,1.19383028,2094.1,2093.2,0.96321827]
[1770570577639,0.74505604,2094.5,2093.2,0.96321827]
[1770570577847,1.19365928,2094.4,2093.2,0.96321827]
[1770570578052,1.19365928,2094.4,2093.4,0.96321827]
[1770570578349,0.002,2094.1,2093.4,0.96321827]
[1770570579150,0.002,2094.1,2093.6,0.96321827]
[1770570581160,0.002,2094.1,2093.8,0.96321827]
[1770570583693,0.002,2094.1,2093.8,2.15717732]
[1770570583849,0.002,2094.1,2093.8,0.96321827]
[1770570584249,0.002,2094.1,2093.6,2.15730195]
[1770570584964,0.002,2094.1,2093.5,4.77653591]
[1770570584965,0.002,2094.1,2093.5,1.19414746]
[1770570585182,0.002,2094.1,2093.4,2.17005517]
[1770570585869,0.002,2094.1,2093.5,2.16999899]
[1770570586174,0.002,2094.1,2093.5,0.97582656]
[1770570586558,0.002,2094.1,2093.4,1.19419235]
[1770570588191,0.002,2094.1,2093.4,2.17001891]
[1770570588588,0.002,2094.1,2093.5,0.97582656]
[1770570590595,0.002,2094.1,2093.7,0.97582656]
[1770570590772,0.002,2094.1,2093.8,0.97582656]
[1770570593321,0.002,2094.1,2094.0,0.97582656]
[1770570594495,0.002,2094.1,2093.9,2.16977087]
[1770570594817,0.002,2094.1,2093.8,1.19396138]
[1770570595615,0.002,2094.1,2093.8,4.53096138]
[1770570595998,1.19343135,2094.8,2093.9,0.97582656]
[1770570596400,1.83808739,2094.8,2093.9,0.97582656]
[1770570597514,1.19343135,2094.8,2093.9,0.97582656]
[1770570597688,4.7736016,2094.9,2094.0,2.16971385]
[1770570600086,5.41825764,2094.9,2094.0,0.97582656]
[1770570600412,5.41825764,2094.9,2093.6,0.001]
[1770570600413,0.64465604,2094.6,2093.6,0.001]
[1770570601414,0.64465604,2094.3,2093.6,0.001]
[1770570601619,0.64465604,2094.0,2093.4,0.001]
[1770570601785,0.64465604,2094.4,2093.4,0.001]
[1770570602185,1.19371627,2094.3,2093.4,0.97682656]
[1770570602792,1.1935453,2094.6,2093.4,0.97682656]
[1770570603031,1.19303268,2095.5,2093.8,0.97582656]
[1770570603194,1.19303268,2095.5,2094.0,0.97582656]
[1770570603586,0.68966054,2095.3,2094.0,0.97582656]
[1770570603908,1.19303268,2095.5,2094.0,0.97582656]
[1770570604217,0.002,2094.4,2094.2,0.97582656]
[1770570604519,0.002,2094.6,2094.2,0.97582656]
[1770570606414,0.002,2094.6,2094.3,2.16954283]
[1770570606800,0.002,2094.6,2094.0,2.16970165]
[1770570607213,0.002,2094.6,2094.0,2.16970824]
[1770570607415,0.002,2094.6,2093.9,3.337]
[1770570607793,0.002,2094.6,2093.6,4.77732586]
[1770570607794,0.64665604,2094.6,2093.6,0.001]
[1770570608103,0.68966054,2094.5,2093.6,0.001]
[1770570608406,0.002,2094.6,2093.6,0.97682656]
[1770570608594,0.64665604,2094.6,2093.6,0.001]
[1770570611398,1.19360229,2094.5,2093.6,0.001]
[1770570611598,1.19360229,2094.5,2093.7,0.97582656]
[1770570612327,1.19360229,2094.5,2093.6,0.97682656]
[1770570613704,4.77640916,2094.6,2093.6,0.97682656]
[1770570613705,0.002,2094.6,2093.7,0.97582656]
[1770570615132,0.002,2094.6,2093.6,0.001]
[1770570616014,1.1955453,2094.6,2093.6,0.001]
[1770570616931,1.1955453,2094.6,2093.8,0.001]
[1770570620119,1.84020134,2094.6,2093.8,0.001]
[1770570620323,0.64465604,2094.5,2093.8,0.001]
[1770570621131,1.1955453,2094.6,2093.8,0.001]
[1770570621640,0.64465604,2094.5,2093.8,0.001]
[1770570622113,1.19365928,2094.4,2093.8,0.001]
[1770570623516,1.19365928,2094.4,2093.8,0.98241841]
[1770570624213,0.002,2094.6,2093.8,0.98241841]
[1770570624415,0.002,2094.6,2093.8,2.17640467]
[1770570624744,0.64665604,2094.6,2093.8,0.001]
[1770570626435,1.19360229,2094.5,2093.8,0.001]
[1770570628246,4.53060229,2094.5,2093.8,0.001]
[1770570628546,5.17525833,2094.5,2093.8,0.001]
[1770570628948,0.64465604,2094.4,2093.8,0.001]
[1770570629357,0.68966054,2094.4,2093.8,0.001]
[1770570629820,0.68966054,2094.4,2094.0,0.001]
[1770570630144,0.69166054,2094.4,2093.6,0.001]
[1770570630525,1.19388729,2094.0,2093.6,0.001]
[1770570633138,4.77754918,2094.4,2093.6,0.001]
[1770570633453,0.64465604,2094.3,2093.6,0.001]
[1770570633659,4.77754918,2094.4,2093.6,0.98241841]
[1770570634970,4.77754918,2094.4,2093.4,0.001]
[1770570634971,0.1024,2094.1,2093.4,0.001]
[1770570635272,1.44221415,2095.8,2094.6,0.98141841]
[1770570635428,1.44218542,2095.8,2094.7,0.98141841]
[1770570635768,1.23987673,2095.8,2094.7,0.98141841]
[1770570635970,3.337,2095.7,2094.7,0.98141841]
[1770570636154,3.337,2095.7,2094.4,0.98141841]
[1770570636355,0.002,2095.6,2094.4,0.98141841]